fUSD/lending_fUSD_20241123
["ID","MTS","AMOUNT","RATE_DAILY","PERIOD"]
[343156230,1732389033557,-2500.0,0.00053843,2]
[343156232,1732389033567,-921.0449,0.00053933,2]
[343156234,1732389033576,-974.5596,0.00053943,2]
[343156236,1732389033585,-321.09227678,0.00053949,2]
[343156238,1732389033595,-1186.13530839,0.00054003,120]
[343156240,1732389033606,-222.62,0.00054033,30]
[343156242,1732389033616,-1000.0,0.00054042,30]
[343156244,1732389033625,-500.0,0.00054042,31]
[343156246,1732389033635,-500.0,0.00054042,31]
[343156248,1732389033644,-500.0,0.00054042,31]
[343156250,1732389033654,-556.82344774,0.00054042,31]
[343156252,1732389033663,-500.0,0.00054042,31]
[343156254,1732389033672,-500.0,0.00054042,31]
[343156256,1732389033681,-500.0,0.00054042,31]
[343156258,1732389033690,-1332.782171,0.00054043,120]
[343156260,1732389033699,-20000.0,0.00054043,7]
[343156262,1732389033708,-243103.7067,0.00054043,2]
[343156264,1732389033718,-223.02821176,0.00054049,26]
[343156266,1732389033727,-187.22739367,0.00054073,7]
[343156268,1732389033736,-321.09227668,0.00054143,2]
[343156270,1732389033745,-1257.0,0.00054143,120]
[343156271,1732389033755,-150.0,0.00054143,120]
[343156273,1732389033764,-629.0,0.00054143,120]
[343156275,1732389033773,-1996.0,0.00054143,120]
[343156277,1732389033782,-561.0,0.00054143,120]
[343156279,1732389033791,-1928.0,0.00054143,120]
[343156281,1732389033800,-3750.0,0.00054143,120]
[343156282,1732389033810,-815.0,0.00054143,2]
[343156283,1732389033819,-1261.0,0.00054143,120]
[343156284,1732389033828,-3517.0,0.00054143,120]
[343156285,1732389033837,-918.0,0.00054143,120]
[343156286,1732389033847,-304.8,0.00054149,30]
[343156287,1732389033858,-153.98,0.00054149,30]
[343156288,1732389033868,-150.0,0.00054169,7]
[343156289,1732389033878,-150.0,0.0005423,7]
[343156290,1732389033887,-2657.55209029,0.0005426,15]
[343156291,1732389033897,-6291.13588044,0.0005427,15]
[343156292,1732389033906,-1000.0,0.00054305,30]
[343156293,1732389033915,-49782.7592,0.00054306,2]
[343156294,1732389033924,-321.09227668,0.00054337,2]
[343156295,1732389033932,-2474.1112,0.000544,2]
[343156296,1732389033939,-8828.5472,0.000544,2]
[343156297,1732389033947,-445.6322,0.000544,2]
[343156298,1732389033955,-6875.36,0.000544,2]
[343156299,1732389033968,-150.0,0.00054413,7]
[343156300,1732389033977,-178.78,0.00054444,120]
[343156301,1732389033985,-150.0,0.0005446,7]
[343156302,1732389033994,-151.69,0.0005449,120]
[343156303,1732389034003,-200031.1119293,0.000545,120]
[343156304,1732389034011,-1000.0,0.000545,19]
[343156305,1732389034140,-173.52,0.00054506,120]
[343156306,1732389034150,-321.09227668,0.00054531,2]
[343156307,1732389034160,-150.0,0.00054555,7]
[343156308,1732389034170,-150.0,0.00054555,7]
[343156309,1732389034180,-150.0,0.0005456,7]
[343156310,1732389034190,-166.1368494,0.00054594,32]
[343156311,1732389034200,-217.283206,0.00054594,120]
[343156312,1732389034209,-161.97907419,0.00054595,32]
[343156313,1732389034219,-2000.0,0.000546,19]
[343156314,1732389034229,-20000.0,0.000546,120]
[343156315,1732389034238,-299.6999296,0.00054654,4]
[343156316,1732389034248,-150.0,0.00054662,7]
[343156317,1732389034258,-223.02821175,0.00054663,26]
[343156318,1732389034268,-5944.0,0.00054667,120]
[343156319,1732389034278,-150.0,0.00054667,2]
[343156320,1732389034288,-1162.0,0.00054667,120]
[343156321,1732389034298,-150.0,0.00054667,120]
[343156322,1732389034307,-13666.0,0.00054667,120]
[343156323,1732389034316,-151.69,0.00054684,120]
[343156324,1732389034326,-1940.7666,0.00054694,2]
[343156325,1732389034335,-245000.0,0.00054694,2]
[343156326,1732389034345,-219.19382321,0.00054694,120]
[343156327,1732389034355,-151.0,0.00054694,120]
[343156328,1732389034365,-3695.772711,0.00054694,120]
[343156329,1732389034375,-3695.772711,0.00054694,120]
[343156330,1732389034385,-151.0,0.00054694,120]
[343156331,1732389034394,-151.0,0.00054694,120]
[343156332,1732389034404,-151.0,0.00054694,120]
[343156333,1732389034413,-150.0,0.00054698,7]
[343156334,1732389034422,-3000.0,0.000547,19]
[343156335,1732389034432,-436.01,0.00054723,2]
[343156336,1732389034441,-321.09227668,0.00054725,2]
[343156337,1732389034451,-239.71,0.00054732,2]
[343156338,1732389034461,-239.71,0.00054747,2]
[343156339,1732389034470,-239.71,0.00054761,2]
[343156340,1732389034480,-500.69765425,0.00054773,10]
[343156341,1732389034490,-159.5410784,0.00054773,2]
[343156342,1732389034500,-500.0,0.00054773,10]
[343156343,1732389034510,-203.12188197,0.00054773,10]
[343156344,1732389034520,-239.71,0.00054776,2]
[343156345,1732389034529,-239.71,0.0005479,2]
[343156346,1732389034539,-200.74289976,0.00054791,2]
[343156347,1732389034548,-2974.49108079,0.00054791,2]
[343156348,1732389034558,-15835.17929759,0.00054791,2]
[343156349,1732389034567,-1000.0,0.00054793,120]
[343156350,1732389034576,-363.0,0.00054794,7]
[343156351,1732389034585,-564.39316581,0.00054794,120]
[343156352,1732389034594,-503.62430508,0.00054794,120]
[343156353,1732389034604,-519.1,0.00054794,120]
[343156354,1732389034616,-500.0,0.00054794,120]
[343156355,1732389034626,-383.74633465,0.00054794,120]
[343156356,1732389034635,-500.0,0.00054794,120]
[343156357,1732389034644,-500.0,0.00054794,120]
[343156358,1732389034654,-500.0,0.00054794,120]
[343156359,1732389034663,-500.0,0.00054794,120]
[343156360,1732389034673,-494.55,0.00054794,120]
[343156361,1732389034683,-500.0,0.00054794,120]
[343156362,1732389034693,-500.0,0.00054794,120]
[343156363,1732389034703,-500.0,0.00054794,120]
[343156364,1732389034712,-500.0,0.00054794,120]
[343156365,1732389034722,-500.0,0.00054794,120]
[343156366,1732389034730,-500.0,0.00054794,120]
[343156367,1732389034739,-500.0,0.00054794,120]
[343156368,1732389034748,-192.48,0.00054794,120]
[343156369,1732389034757,-500.0,0.00054794,120]
[343156370,1732389034766,-500.0,0.00054794,120]
[343156371,1732389034775,-500.0,0.00054794,120]
[343156372,1732389034785,-500.0,0.00054794,120]
[343156373,1732389034795,-500.0,0.00054794,120]
[343156374,1732389034804,-162.43,0.00054794,120]
[343156375,1732389034813,-500.0,0.00054794,120]
[343156376,1732389034823,-500.0,0.00054794,120]
[343156377,1732389034833,-500.0,0.00054794,120]
[343156378,1732389034842,-500.0,0.00054794,120]
[343156379,1732389034852,-540.97,0.00054794,120]
[343156380,1732389034864,-500.0,0.00054794,120]
[343156381,1732389034873,-500.0,0.00054794,120]
[343156382,1732389034883,-437.40843441,0.00054794,120]
[343156383,1732389034892,-500.0,0.00054794,120]
[343156384,1732389034902,-500.0,0.00054794,120]
[343156385,1732389034912,-500.0,0.00054794,120]
[343156386,1732389034921,-230.61495345,0.00054794,120]
[343156387,1732389034931,-500.0,0.00054794,120]
[343156388,1732389034940,-500.0,0.00054794,120]
[343156389,1732389034950,-500.0,0.00054794,120]
[343156390,1732389034960,-500.0,0.00054794,120]
[343156391,1732389034973,-500.0,0.00054794,120]
[343156392,1732389034982,-500.0,0.00054794,120]
[343156393,1732389034992,-500.0,0.00054794,120]
[343156394,1732389035001,-418.57971458,0.00054794,120]
[343156395,1732389035010,-500.0,0.00054794,120]
[343156396,1732389035021,-500.0,0.00054794,120]
[343156397,1732389035030,-500.0,0.00054794,120]
[343156398,1732389035040,-184.08,0.00054794,120]
[343156399,1732389035050,-500.0,0.00054794,120]
[343156400,1732389035059,-500.0,0.00054794,120]
[343156401,1732389035068,-500.0,0.00054794,120]
[343156402,1732389035078,-500.0,0.00054794,120]
[343156403,1732389035087,-178.90581035,0.00054794,120]
[343156404,1732389035096,-500.0,0.00054794,120]
[343156405,1732389035106,-500.0,0.00054794,120]
[343156406,1732389035120,-412.17529231,0.00054794,120]
[343156407,1732389035131,-500.0,0.00054794,120]
[343156408,1732389035141,-500.0,0.00054794,120]
[343156409,1732389035150,-500.0,0.00054794,120]
[343156410,1732389035161,-500.0,0.00054794,120]
[343156411,1732389035170,-500.0,0.00054794,120]
[343156412,1732389035180,-459.12,0.00054794,120]
[343156413,1732389035189,-500.0,0.00054794,120]
[343156414,1732389035199,-503.91480577,0.00054794,120]
[343156415,1732389035208,-500.0,0.00054794,120]
[343156416,1732389035218,-500.0,0.00054794,120]
[343156417,1732389035227,-500.0,0.00054794,120]
[343156418,1732389035236,-500.0,0.00054794,120]
[343156419,1732389035246,-341.9,0.00054794,120]
[343156420,1732389035255,-500.0,0.00054794,120]
[343156421,1732389035265,-500.0,0.00054794,120]
[343156422,1732389035274,-500.0,0.00054794,120]
[343156423,1732389035284,-252.26,0.00054794,120]
[343156424,1732389035294,-500.0,0.00054794,120]
[343156425,1732389035303,-500.0,0.00054794,120]
[343156426,1732389035313,-265.0,0.00054794,120]
[343156427,1732389035322,-500.0,0.00054794,120]
[343156428,1732389035332,-500.0,0.00054794,120]
[343156429,1732389035341,-500.0,0.00054794,120]
[343156430,1732389035351,-500.0,0.00054794,120]
[343156431,1732389035362,-355.11836906,0.00054794,120]
[343156432,1732389035371,-500.0,0.00054794,120]
[343156433,1732389035381,-503.93258737,0.00054794,120]
[343156434,1732389035390,-500.0,0.00054794,120]
[343156435,1732389035400,-500.0,0.00054794,120]
[343156436,1732389035410,-500.0,0.00054794,120]
[343156437,1732389035419,-500.0,0.00054794,120]
[343156438,1732389035429,-500.0,0.00054794,120]
[343156439,1732389035438,-500.0,0.00054794,120]
[343156440,1732389035447,-592.62,0.00054794,120]
[343156441,1732389035457,-500.0,0.00054794,120]
[343156442,1732389035466,-500.0,0.00054794,120]
[343156443,1732389035475,-500.0,0.00054794,120]
[343156444,1732389035484,-500.0,0.00054794,120]
[343156445,1732389035493,-500.0,0.00054794,120]
[343156446,1732389035503,-500.0,0.00054794,120]
[343156447,1732389035513,-500.0,0.00054794,120]
[343156448,1732389035522,-243.6,0.00054794,120]
[343156449,1732389035531,-500.0,0.00054794,120]
[343156450,1732389035541,-500.0,0.00054794,120]
[343156451,1732389035550,-500.0,0.00054794,120]
[343156452,1732389035559,-500.0,0.00054794,120]
[343156453,1732389035569,-500.0,0.00054794,120]
[343156454,1732389035579,-500.0,0.00054794,120]
[343156455,1732389035588,-612.1,0.00054794,120]
[343156456,1732389035597,-500.0,0.00054794,120]
[343156457,1732389035611,-500.0,0.00054794,120]
[343156458,1732389035620,-500.0,0.00054794,120]
[343156459,1732389035629,-381.14,0.00054794,120]
[343156460,1732389035638,-500.0,0.00054794,120]
[343156461,1732389035647,-500.0,0.00054794,120]
[343156462,1732389035656,-500.0,0.00054794,120]
[343156463,1732389035665,-500.0,0.00054794,120]
[343156464,1732389035674,-500.0,0.00054794,120]
[343156465,1732389035683,-500.0,0.00054794,120]
[343156466,1732389035692,-500.0,0.00054794,120]
[343156467,1732389035701,-500.0,0.00054794,120]
[343156468,1732389035710,-500.0,0.00054794,120]
[343156469,1732389035719,-500.0,0.00054794,120]
[343156470,1732389035728,-500.0,0.00054794,120]
[343156471,1732389035737,-500.0,0.00054794,120]
[343156472,1732389035746,-500.0,0.00054794,120]
[343156473,1732389035755,-351.60787464,0.00054794,120]
[343156474,1732389035765,-500.0,0.00054794,120]
[343156475,1732389035774,-500.0,0.00054794,120]
[343156476,1732389035783,-500.0,0.00054794,120]
[343156477,1732389035792,-500.0,0.00054794,120]
[343156478,1732389035801,-500.0,0.00054794,120]
[343156479,1732389035811,-500.0,0.00054794,120]
[343156480,1732389035820,-500.0,0.00054794,120]
[343156481,1732389035829,-500.0,0.00054794,120]
[343156482,1732389035838,-500.0,0.00054794,120]
[343156483,1732389035847,-500.0,0.00054794,120]
[343156484,1732389035860,-500.0,0.00054794,120]
[343156485,1732389035869,-500.0,0.00054794,120]
[343156486,1732389035879,-500.0,0.00054794,120]
[343156487,1732389035888,-500.0,0.00054794,120]
[343156488,1732389035897,-500.0,0.00054794,120]
[343156489,1732389035906,-527.58,0.00054794,120]
[343156490,1732389035915,-500.0,0.00054794,120]
[343156491,1732389035925,-500.0,0.00054794,120]
[343156492,1732389035935,-500.0,0.00054794,120]
[343156493,1732389036048,-500.0,0.00054794,120]
[343156494,1732389036058,-500.0,0.00054794,120]
[343156495,1732389036067,-503.57545106,0.00054794,120]
[343156496,1732389036078,-500.0,0.00054794,120]
[343156497,1732389036088,-500.0,0.00054794,120]
[343156498,1732389036097,-500.0,0.00054794,120]
[343156499,1732389036108,-500.0,0.00054794,120]
[343156500,1732389036117,-500.0,0.00054794,120]
[343156501,1732389036127,-500.0,0.00054794,120]
[343156502,1732389036137,-500.0,0.00054794,120]
[343156503,1732389036147,-500.0,0.00054794,120]
[343156504,1732389036156,-500.0,0.00054794,120]
[343156505,1732389036166,-500.0,0.00054794,120]
[343156506,1732389036175,-500.0,0.00054794,120]
[343156507,1732389036184,-500.0,0.00054794,120]
[343156508,1732389036194,-500.0,0.00054794,120]
[343156509,1732389036204,-500.0,0.00054794,120]
[343156510,1732389036213,-500.0,0.00054794,120]
[343156511,1732389036223,-500.0,0.00054794,120]
[343156512,1732389036232,-500.0,0.00054794,120]
[343156513,1732389036241,-500.0,0.00054794,120]
[343156514,1732389036250,-500.0,0.00054794,120]
[343156515,1732389036259,-500.0,0.00054794,120]
[343156516,1732389036269,-500.0,0.00054794,120]
[343156517,1732389036278,-500.0,0.00054794,120]
[343156518,1732389036287,-500.0,0.00054794,120]
[343156519,1732389036296,-500.0,0.00054794,120]
[343156520,1732389036306,-500.0,0.00054794,120]
[343156521,1732389036315,-500.0,0.00054794,120]
[343156522,1732389036325,-500.0,0.00054794,120]
[343156523,1732389036334,-500.0,0.00054794,120]
[343156524,1732389036343,-500.0,0.00054794,120]
[343156525,1732389036353,-500.0,0.00054794,120]
[343156526,1732389036364,-500.0,0.00054794,120]
[343156527,1732389036373,-556.7,0.00054794,120]
[343156528,1732389036382,-500.0,0.00054794,120]
[343156529,1732389036392,-500.0,0.00054794,120]
[343156530,1732389036401,-500.0,0.00054794,120]
[343156531,1732389036410,-500.0,0.00054794,120]
[343156532,1732389036420,-251.58,0.00054794,120]
[343156533,1732389036429,-500.0,0.00054794,120]
[343156534,1732389036439,-500.0,0.00054794,120]
[343156535,1732389036448,-606.62,0.00054794,120]
[343156536,1732389036458,-500.0,0.00054794,120]
[343156537,1732389036467,-500.0,0.00054794,120]
[343156538,1732389036476,-500.0,0.00054794,120]
[343156539,1732389036486,-500.0,0.00054794,120]
[343156540,1732389036495,-500.0,0.00054794,120]
[343156541,1732389036504,-500.0,0.00054794,120]
[343156542,1732389036513,-500.0,0.00054794,120]
[343156543,1732389036522,-500.0,0.00054794,120]
[343156544,1732389036531,-200.09984243,0.00054794,120]
[343156545,1732389036540,-500.0,0.00054794,120]
[343156546,1732389036549,-500.0,0.00054794,120]
[343156547,1732389036559,-500.0,0.00054794,120]
[343156548,1732389036568,-381.09,0.00054794,120]
[343156549,1732389036577,-500.0,0.00054794,120]
[343156550,1732389036586,-500.0,0.00054794,120]
[343156551,1732389036595,-500.0,0.00054794,120]
[343156552,1732389036604,-500.0,0.00054794,120]
[343156553,1732389036615,-500.0,0.00054794,120]
[343156554,1732389036624,-500.0,0.00054794,120]
[343156555,1732389036633,-500.0,0.00054794,120]
[343156556,1732389036642,-230.36,0.00054794,120]
[343156557,1732389036651,-500.0,0.00054794,120]
[343156558,1732389036660,-578.03,0.00054794,120]
[343156559,1732389036669,-500.0,0.00054794,120]
[343156560,1732389036679,-500.0,0.00054794,120]
[343156561,1732389036687,-500.0,0.00054794,120]
[343156562,1732389036697,-500.0,0.00054794,120]
[343156563,1732389036706,-500.0,0.00054794,120]
[343156564,1732389036715,-350.4405892,0.00054794,120]
[343156565,1732389036724,-500.0,0.00054794,120]
[343156566,1732389036733,-500.0,0.00054794,120]
[343156567,1732389036742,-500.0,0.00054794,120]
[343156568,1732389036751,-502.57395589,0.00054794,120]
[343156569,1732389036761,-500.0,0.00054794,120]
[343156570,1732389036770,-500.0,0.00054794,120]
[343156571,1732389036779,-500.0,0.00054794,120]
[343156572,1732389036788,-500.0,0.00054794,120]
[343156573,1732389036797,-574.18,0.00054794,120]
[343156574,1732389036807,-500.0,0.00054794,120]
[343156575,1732389036816,-500.0,0.00054794,120]
[343156576,1732389036825,-500.0,0.00054794,120]
[343156577,1732389036835,-500.0,0.00054794,120]
[343156578,1732389036844,-500.0,0.00054794,120]
[343156579,1732389036853,-500.0,0.00054794,120]
[343156580,1732389036864,-500.0,0.00054794,120]
[343156581,1732389036873,-500.0,0.00054794,120]
[343156582,1732389036883,-500.0,0.00054794,120]
[343156583,1732389036892,-500.0,0.00054794,120]
[343156584,1732389036901,-500.0,0.00054794,120]
[343156585,1732389036910,-500.0,0.00054794,120]
[343156586,1732389036919,-500.0,0.00054794,120]
[343156587,1732389036928,-500.0,0.00054794,120]
[343156588,1732389036937,-500.0,0.00054794,120]
[343156589,1732389036946,-500.0,0.00054794,120]
[343156590,1732389036955,-500.0,0.00054794,120]
[343156591,1732389036968,-500.0,0.00054794,120]
[343156592,1732389036977,-502.96102373,0.00054794,120]
[343156593,1732389036986,-500.0,0.00054794,120]
[343156594,1732389036995,-500.0,0.00054794,120]
[343156595,1732389037004,-178.44179844,0.00054794,120]
[343156596,1732389037014,-500.0,0.00054794,120]
[343156597,1732389037022,-500.0,0.00054794,120]
[343156598,1732389037031,-500.0,0.00054794,120]
[343156599,1732389037041,-500.0,0.00054794,120]
[343156600,1732389037051,-500.0,0.00054794,120]
[343156601,1732389037060,-500.0,0.00054794,120]
[343156602,1732389037069,-500.0,0.00054794,120]
[343156603,1732389037078,-500.0,0.00054794,120]
[343156604,1732389037089,-213.70133404,0.00054794,120]
[343156605,1732389037098,-500.0,0.00054794,120]
[343156606,1732389037109,-500.0,0.00054794,120]
[343156607,1732389037118,-500.0,0.00054794,120]
[343156608,1732389037127,-500.0,0.00054794,120]
[343156609,1732389037136,-500.0,0.00054794,120]
[343156610,1732389037146,-500.0,0.00054794,120]
[343156611,1732389037155,-584.78887207,0.00054794,120]
[343156612,1732389037165,-500.0,0.00054794,120]
[343156613,1732389037174,-500.0,0.00054794,120]
[343156614,1732389037184,-500.0,0.00054794,120]
[343156615,1732389037194,-500.0,0.00054794,120]
[343156616,1732389037203,-500.0,0.00054794,120]
[343156617,1732389037212,-450.44668478,0.00054794,120]
[343156618,1732389037222,-500.0,0.00054794,120]
[343156619,1732389037231,-500.0,0.00054794,120]
[343156620,1732389037240,-500.0,0.00054794,120]
[343156621,1732389037250,-500.0,0.00054794,120]
[343156622,1732389037259,-500.0,0.00054794,120]
[343156623,1732389037269,-500.0,0.00054794,120]
[343156624,1732389037278,-500.0,0.00054794,120]
[343156625,1732389037288,-314.95,0.00054794,120]
[343156626,1732389037297,-500.0,0.00054794,120]
[343156627,1732389037307,-500.0,0.00054794,120]
[343156628,1732389037316,-500.0,0.00054794,120]
[343156629,1732389037326,-500.0,0.00054794,120]
[343156630,1732389037335,-500.0,0.00054794,120]
[343156631,1732389037345,-500.0,0.00054794,120]
[343156632,1732389037355,-500.0,0.00054794,120]
[343156633,1732389037366,-500.0,0.00054794,120]
[343156634,1732389037376,-500.0,0.00054794,120]
[343156635,1732389037385,-500.0,0.00054794,120]
[343156636,1732389037394,-254.73631729,0.00054794,120]
[343156637,1732389037403,-500.0,0.00054794,120]
[343156638,1732389037413,-503.40603641,0.00054794,120]
[343156639,1732389037422,-500.0,0.00054794,120]
[343156640,1732389037431,-500.0,0.00054794,120]
[343156641,1732389037440,-500.0,0.00054794,120]
[343156642,1732389037449,-500.0,0.00054794,120]
[343156643,1732389037459,-500.0,0.00054794,120]
[343156644,1732389037468,-346.3729723,0.00054794,120]
[343156645,1732389037477,-500.0,0.00054794,120]
[343156646,1732389037486,-500.0,0.00054794,120]
[343156647,1732389037495,-502.07482537,0.00054794,120]
[343156648,1732389037503,-500.0,0.00054794,120]
[343156649,1732389037513,-500.0,0.00054794,120]
[343156650,1732389037523,-500.0,0.00054794,120]
[343156651,1732389037532,-500.0,0.00054794,120]
[343156652,1732389037541,-500.0,0.00054794,120]
[343156653,1732389037550,-430.09318773,0.00054794,120]
[343156654,1732389037560,-500.0,0.00054794,120]
[343156655,1732389037569,-500.0,0.00054794,120]
[343156656,1732389037578,-353.76,0.00054794,120]
[343156657,1732389037587,-500.0,0.00054794,120]
[343156658,1732389037597,-500.0,0.00054794,120]
[343156659,1732389037607,-227.17147395,0.00054794,120]
[343156660,1732389037617,-500.0,0.00054794,7]
[343156661,1732389037628,-500.0,0.00054794,7]
[343156662,1732389037638,-500.0,0.00054794,7]
[343156663,1732389037648,-500.0,0.00054794,7]
[343156664,1732389037658,-500.0,0.00054794,7]
[343156665,1732389037667,-500.0,0.00054794,120]
[343156666,1732389037778,-500.0,0.00054794,7]
[343156667,1732389037788,-500.0,0.00054794,120]
[343156668,1732389037798,-500.0,0.00054794,7]
[343156669,1732389037807,-500.0,0.00054794,7]
[343156670,1732389037816,-500.0,0.00054794,7]
[343156671,1732389037826,-500.0,0.00054794,7]
[343156672,1732389037835,-500.0,0.00054794,7]
[343156673,1732389037844,-500.0,0.00054794,120]
[343156674,1732389037853,-500.0,0.00054794,120]
[343156675,1732389037864,-500.0,0.00054794,120]
[343156676,1732389037873,-500.0,0.00054794,120]
[343156677,1732389037883,-500.0,0.00054794,120]
[343156678,1732389037892,-526.72,0.00054794,120]
[343156679,1732389037902,-500.0,0.00054794,120]
[343156680,1732389037911,-500.0,0.00054794,120]
[343156681,1732389037920,-500.0,0.00054794,120]
[343156682,1732389037930,-504.58956674,0.00054794,120]
[343156683,1732389037939,-500.0,0.00054794,120]
[343156684,1732389037949,-503.12544228,0.00054794,120]
[343156685,1732389037958,-159.48803924,0.00054794,120]
[343156686,1732389037968,-500.0,0.00054794,120]
[343156687,1732389037978,-500.0,0.00054794,120]
[343156688,1732389037988,-500.0,0.00054794,120]
[343156689,1732389037997,-500.0,0.00054794,120]
[343156690,1732389038006,-511.39161521,0.00054794,120]
[343156691,1732389038015,-500.0,0.00054794,120]
[343156692,1732389038024,-500.0,0.00054794,120]
[343156693,1732389038034,-500.0,0.00054794,120]
[343156694,1732389038045,-500.0,0.00054794,120]
[343156695,1732389038055,-500.0,0.00054794,120]
[343156696,1732389038064,-502.84460676,0.00054794,120]
[343156697,1732389038074,-500.0,0.00054794,120]
[343156698,1732389038083,-500.0,0.00054794,120]
[343156699,1732389038092,-315.47033,0.00054794,120]
[343156700,1732389038102,-500.0,0.00054794,120]
[343156701,1732389038111,-511.46895313,0.00054794,120]
[343156702,1732389038121,-500.0,0.00054794,120]
[343156703,1732389038131,-503.65735952,0.00054794,120]
[343156704,1732389038141,-500.0,0.00054794,60]
[343156705,1732389038150,-500.0,0.00054794,60]
[343156706,1732389038159,-500.0,0.00054794,90]
[343156707,1732389038169,-500.0,0.00054794,90]
[343156708,1732389038178,-500.0,0.00054794,90]
[343156709,1732389038187,-500.0,0.00054794,90]
[343156710,1732389038197,-500.0,0.00054794,90]
[343156711,1732389038207,-500.0,0.00054794,90]
[343156712,1732389038217,-465.29717013,0.00054794,90]
[343156713,1732389038227,-500.0,0.00054794,120]
[343156714,1732389038236,-500.0,0.00054794,120]
[343156715,1732389038246,-500.0,0.00054794,120]
[343156716,1732389038256,-500.0,0.00054794,120]
[343156717,1732389038265,-500.0,0.00054794,120]
[343156718,1732389038275,-500.0,0.00054794,120]
[343156719,1732389038285,-224.67,0.00054794,120]
[343156720,1732389038294,-500.0,0.00054794,120]
[343156721,1732389038304,-500.66312061,0.00054794,120]
[343156722,1732389038314,-500.0,0.00054794,120]
[343156723,1732389038323,-368.34,0.00054794,120]
[343156724,1732389038332,-500.0,0.00054794,7]
[343156725,1732389038342,-500.0,0.00054794,7]
[343156726,1732389038351,-500.0,0.00054794,7]
[343156727,1732389038361,-296.08306416,0.00054794,7]
[343156728,1732389038371,-500.0,0.00054794,120]
[343156729,1732389038380,-500.0,0.00054794,120]
[343156730,1732389038390,-500.0,0.00054794,120]
[343156731,1732389038399,-500.0,0.00054794,120]
[343156732,1732389038409,-563.06,0.00054794,120]
[343156733,1732389038419,-500.0,0.00054794,120]
[343156734,1732389038428,-500.0,0.00054794,120]
[343156735,1732389038438,-240.6,0.00054794,120]
[343156737,1732389038448,-500.0,0.00054794,120]
[343156739,1732389038457,-507.25529662,0.00054794,120]
[343156740,1732389038467,-500.0,0.00054794,120]
[343156741,1732389038476,-500.0,0.00054794,120]
[343156742,1732389038485,-500.0,0.00054794,120]
[343156743,1732389038494,-500.0,0.00054794,120]
[343156744,1732389038503,-320.35428829,0.00054794,120]
[343156745,1732389038512,-500.0,0.00054794,120]
[343156746,1732389038521,-506.95781533,0.00054794,120]
[343156747,1732389038531,-500.0,0.00054794,120]
[343156748,1732389038540,-500.0,0.00054794,120]
[343156749,1732389038550,-500.0,0.00054794,120]
[343156750,1732389038559,-500.0,0.00054794,120]
[343156751,1732389038568,-500.0,0.00054794,120]
[343156752,1732389038578,-500.0,0.00054794,120]
[343156753,1732389038588,-500.0,0.00054794,120]
[343156754,1732389038597,-500.0,0.00054794,120]
[343156755,1732389038606,-168.51,0.00054794,120]
[343156756,1732389038622,-500.0,0.00054794,120]